Workbook

Sheet Bürgergeld
A1: Berechnungsbogen Bürgergeld
A2: Name: | I2: Datum:
A3: A | B3: Anspruchsvoraussetzungen für jede Person prüfen
A4: B | B4: Bedarf
B5: Gesamte BG | C5: Person 1 | D5: Person 2 | E5: Person 3 | F5: Person 4 | G5: Person 5 | H5: Person 6 | I5: Person 7 | J5: Person 8 | K5: Person 9
A6: Regelbedarfe | B6: =IF(SUM(C6:Z6)=0,"",SUM(C6:Z6)) -> 
A7: Mehrbedarfe | B7: =IF(SUM(C7:Z7)=0,"",SUM(C7:Z7)) -> 
A8: Bedarfe für Unterkunft/Heizung | B8: =IF(SUM(C8:Z8)=0,"",SUM(C8:Z8)) -> 
A9: Sonstiges | B9: =IF(SUM(C9:Z9)=0,"",SUM(C9:Z9)) -> 
A10: Summe Bedarf | B10: =IF(SUM(C10:K10)=0,"",SUM(C10:K10)) ->  | C10: =IF(SUM(C6:C9)=0,"",SUM(C6:C9)) -> 
A11: C | B11: Einkommen
A12: Erwerbseinkommen | B12: =IF(SUM(C12:Z12)=0,"",SUM(C12:Z12)) -> 
A13: Kindergeld
A14: Unterhalt/svorschuss
A15: Weiteres Einkommen…
A16: Weiteres Einkommen…
A17: Summe der Einkommen | C17: =(IF(SUM(C12:C16)=0,"",SUM(C12:C16))) ->  | D17: =IF(SUM(D12:D16)=0,"",SUM(D12:D16)) -> 
A18: D | B18: Abesetzbeträge vom Einkommen (§ 11 b SGB II)
A19: 1. Steuern | B19: =IF(SUM(C19:Z19)=0,"",SUM(C19:Z19)) -> 
A20: 2. Sozialversicherungsbeiträge | B20: =IF(SUM(C20:Z20)=0,"",SUM(C20:Z20)) -> 
A21: 3. Beiträge Versicherungen
A22: 4. Altersvorsorgebeiträge
A23: 5. notwendige Ausgaben fürs EK
A24: 6. Freibetrag für Erwerbstätige
A25: 7. gesetzl. Unterhaltsverpflicht.
A26: 8. BAB/Bafög berücksicht. EK
A27: Pauschale "Erwerbseinkommen"
A28: Pauschale "Ehrenamt"
A29: Pauschale "Versicherungen"
A30: Summe der Absetzbeträge | B30: =IF(SUM(C30:K30)=0,"",SUM(C30:K30)) ->  | C30: =IF(SUM(C19:C29)=0,"",SUM(C19:C29)) ->  | D30: =IF(SUM(D19:D29)=0,"",SUM(D19:D29)) -> 
A31: E | B31: Vermögen
A32: F | B32: Bedürftigkeit
A33: Summe Bedarf | B33: =IF(SUM(C33:Z33)=0,"",SUM(C33:K33)) ->  | C33: =C10 ->  | D33: =D10 -> 
A34: - anrechenbares Einkommen | B34: =IF(SUM(C34:Z34)=0,"",SUM(C34:K34)) ->  | C34: =IF((SUM(C12:C16)-SUM(C19:C29))=0,"",(SUM(C12:C16)-SUM(C19:C29))) ->  | D34: =IF((SUM(D12:D16)-SUM(D19:D29))=0,"",(SUM(D12:D16)-SUM(D19:D29))) -> 
A35: Leistungsanspruch | B35: =SUM(C35:K35) -> 0.00 € | C35: =SUM(C6:C9)-(SUM(C12:C16)-SUM(C19:C29)) -> 0.00 € | D35: =IF(SUM(D6:D9)-(SUM(D12:D16)-SUM(D19:D29))<0,0,(SUM(D6:D9)-(SUM(D12:D16)-SUM(D19:D29)))) -> 0.00 € | E35: 0.00 € | F35: 0.00 € | G35: 0.00 € | H35: 0.00 € | I35: 0.00 € | J35: 0.00 € | K35: 0.00 €

Sheet Regelbedarfe
A1: Regelbedarfe
C2: 2023
A3: Regelbedarfsstufen | B3: 1 | C3: 2 | D3: 3 | E3: 4 | F3: 5 | G3: 6
A4: Für wen? | B4: Alleinstehende oder allein erziehende Personen; wenn Partner/in minderjährig | C4: Volljährige Partner innerhalb von Bedarfs-gemeinschaften | D4: Für 18 - 24 jährige im Haushalt der Eltern oder wenn ohne Zustimmung ausgezogen | E4: Jugendliche von 14 bis 17 Jahre | F4: Kinder von 6 - 13 Jahre | G4: Kinder unter 6 Jahre
D5: Kinder von 6 bis 13 Jahren | E5: Kinder ab Beginn des 15 LJ bis Vollendung des 25 LJ | F5: Partner ab Beginn des 19. LJ | G5: Partner ab Beginn des 19. LJ
A7: maßgeblicher Regelbedarf (ausgewählt) | B7: =VLOOKUP($C$2,$A$8:$G$20,2,FALSE) -> 502 € | C7: =VLOOKUP($C$2,$A$8:$G$20,3,FALSE) -> 451 € | D7: =VLOOKUP($C$2,$A$8:$G$20,4,FALSE) -> 402 € | E7: =VLOOKUP($C$2,$A$8:$G$20,5,FALSE) -> 420 € | F7: =VLOOKUP($C$2,$A$8:$G$20,6,FALSE) -> 348 € | G7: =VLOOKUP($C$2,$A$8:$G$20,7,FALSE) -> 318 €
A8: 2023 | B8: 502 € | C8: 451 € | D8: 402 € | E8: 420 € | F8: 348 € | G8: 318 €
A9: 2022 | B9: 449 € | C9: 404 € | D9: 360 € | E9: 376 € | F9: 311 € | G9: 285 €
A10: 2021 | B10: 446 € | C10: 401 € | D10: 357 € | E10: 373 € | F10: 309 € | G10: 283 €
A11: 2020 | B11: 432 € | C11: 389 € | D11: 345 € | E11: 328 € | F11: 308 € | G11: 250 €
A12: 2019 | B12: 424 € | C12: 382 € | D12: 339 € | E12: 322 € | F12: 302 € | G12: 245 €
A13: 2018 | B13: 416 € | C13: 374 € | D13: 332 € | E13: 316 € | F13: 296 € | G13: 240 €
A14: 2017 | B14: 409 € | C14: 368 € | D14: 327 € | E14: 311 € | F14: 291 € | G14: 237 €
A15: 2016 | B15: 404 € | C15: 364 € | D15: 324 € | E15: 306 € | F15: 270 € | G15: 237 €
A16: 2015 | B16: 399 € | C16: 360 € | D16: 320 € | E16: 302 € | F16: 267 € | G16: 234 €
A17: 2014 | B17: 391 € | C17: 353 € | D17: 313 € | E17: 296 € | F17: 261 € | G17: 229 €
A18: 2013 | B18: 382 € | C18: 345 € | D18: 306 € | E18: 289 € | F18: 255 € | G18: 224 €
A19: 2012 | B19: 374 € | C19: 337 € | D19: 299 € | E19: 287 € | F19: 251 € | G19: 219 €
A20: 2011 | B20: 364 € | C20: 328 € | D20: 291 € | E20: 287 € | F20: 251 € | G20: 215 €
I22: 2023
I23: 2022 | L23: 250
A24: Alleinstehende | B24: =B7 -> 502 € | D24: Arbeitslosengeld I | G24: 100.00 € | I24: 2021 | L24: 500
A25: Partner | B25: =C7 -> 451 € | D25: Krankengeld | I25: 2020 | L25: 750
A26: 18 - 24 Jährige oder Umzug ohne Zust. | B26: =D7 -> 402 € | D26: Rente | I26: 2019 | L26: 1000
A27: Jugendliche 14 bis 17 | B27: =E7 -> 420 € | D27: Unterhalt | I27: 2018 | L27: 1250
A28: Kinder 6 bis 13 | B28: =F7 -> 348 € | D28: Unterhaltsvorschuss | G28: 30.00 € | I28: 2017 | L28: 1500
A29: Kinder unter 6 | B29: =G7 -> 318 € | D29: Elterngeld | I29: 2016 | L29: 1750
I30: 2015 | L30: 2000
I31: 2014
I32: 2013
I33: 2012
I34: 2011

Sheet Mehrbedarfe
A1: Mehrbedarfe
A2: Wer? | B2: Wieviel | C2: gesetzl. Grundlage | D2: Betrag
A3: Werdende Mütter (ab der 13. Schwangerschaftswoche)
A4: alleinstehend/allein erziehend | B4: 17% | C4: § 21 Abs. 2 | D4: =Regelbedarfe!B7*0.17 -> 85.34 €
A5: mit Partner (beide vollj.) | D5: =Regelbedarfe!C7*0.17 -> 76.67 €
A6: minderj. Schwangere m. Partn. | D6: =Regelbedarfe!D7*0.17 -> 68.34 €
A7: RB 4 | D7: =Regelbedarfe!E7*0.17 -> 71.40 €
A8: Allein erziehende Elternteile
A9: 1 Kind unter 7 | B9: 36% | C9: § 21 Abs. 3 Nr. 1 | D9: =B9*Regelbedarfe!B7 -> 180.72 €
A10: 1 Kind ab 7 | B10: 12% | C10: § 21 Abs. 3 Nr. 2 | D10: =B10*Regelbedarfe!B7 -> 60.24 €
A11: 2 Kinder unter 16 | B11: 36% | C11: § 21 Abs. 3 Nr. 1 | D11: =B11*Regelbedarfe!B7 -> 180.72 €
A12: 2 Kinder ab 7, davon mind. eines ab 16 | B12: 24% | C12: § 21 Abs. 3 Nr. 2 | D12: =B12*Regelbedarfe!B7 -> 120.48 €
A13: 3 Kinder davon mind. zwei unter 16 | B13: 36% | C13: § 21 Abs. 3 Nr. 1 | D13: =B13*Regelbedarfe!B7 -> 180.72 €
A14: 3 Kinder ab 16 | B14: 36% | C14: § 21 Abs. 3 Nr. 2 | D14: =B14*Regelbedarfe!B7 -> 180.72 €
A15: 4 Kinder unter 18 | B15: 48% | D15: =B15*Regelbedarfe!B7 -> 240.96 €
A16: 5 Kinder unter 18 | B16: 60% | D16: =B16*Regelbedarfe!B7 -> 301.20 €
A17: Behinderte Menschen
A18: alleinstehend/allein erziehend/mit minderj. Partner | B18: 35% | C18: § 21 Abs. 4 | D18: =B18*Regelbedarfe!B7 -> 175.70 €
A19: mit Partner, beide volljährig | D19: =Regelbedarfe!C7*B18 -> 157.85 €
A20: minderjähriger behinderter Mensch + Partner | D20: =B18*Regelbedarfe!D7 -> 140.70 €
A21: Warmwasserzubereitung bei dezentraler Warmwassererzeugung
A22: Regelbedarfsstufe 1 | B22: 2.3% | C22: § 21 Abs. 7 Satz 2 Nr.1 | D22: =B22*Regelbedarfe!B7 -> 11.55 €
A23: Regelbedarfsstufe 2 | B23: 2.3% | C23: § 21 Abs. 7 Satz 2 Nr.1 | D23: =B23*Regelbedarfe!C7 -> 10.37 €
A24: Regelbedarfsstufe 3 | B24: 2.3% | C24: § 21 Abs. 7 Satz 2 Nr.1 | D24: =B24*Regelbedarfe!D7 -> 9.25 €
A25: Regelbedarfsstufe 4 | B25: 1.4% | C25: § 21 Abs. 7 Satz 2 Nr.2 | D25: =B25*Regelbedarfe!E7 -> 5.88 €
A26: Regelbedarfsstufe 5 | B26: 1.2% | C26: § 21 Abs. 7 Satz 2 Nr.3 | D26: =B26*Regelbedarfe!F7 -> 4.18 €
A27: Regelbedarfsstufe 6 | B27: 0.8% | C27: § 21 Abs. 7 Satz 2 Nr.4 | D27: =B27*Regelbedarfe!G7 -> 2.54 €
A28: Kostenaufwändige Ernährung
A29: Die Rechtssprechung orientiert sich beim Mehraufwand für kostenaufwendige Ernährung an den Empfehlungen des Deutschen Vereins: https://www.deutscher-verein.de/de/uploads/empfehlungen-stellungnahmen/2020/dv-12-20_kostenaufwaendige-ernaehrung.pdf
A30: Ein unabweisbarer, laufender, nicht nur einmaliger besonderer Bedarf (Härtefallregelung)
A31: Bei Leistungsberechtigten wird ein Mehrbedarf anerkannt, soweit im Einzelfall ein unabweisbarer, laufender, nicht nur einmaliger besonderer Bedarf besteht. Der Mehrbedarf ist unabweisbar, wenn er insbesondere nicht durch die Zuwendungen Dritter sowie unter Berücksichtigung von Einsparmöglichkeiten der Leistungsberechtigten gedeckt ist und seiner Höhe nach erheblich von einem durchschnittlichen Bedarf abweicht. https://www.arbeitsagentur.de/datei/dok_ba015861.pdf

Sheet Erwerbstätigenfreibeträge
D1: Angaben zur erwerbstätigen Person
D2: Bruttolohn
D4: Nettolohn
D6: Kinder ja/nein
D7: nein | M7: ja
M8: nein
A10: Einkommensbereinigung (pauschal) bis 30. Juni 23 | G10: Einkommensbereinigung (pauschal) ab 01. Juli 23
A11: Pauschaler Absetzbetrag nach § 11 b Abs. 2 SGB II | G11: Pauschaler Absetzbetrag nach § 11 b Abs. 2 SGB II
A12: =IF(D5>100,100,D5) -> 0 | G12: =IF(D5>100,100,D5) -> 0
A13: Erwerbstätigenfreibeträge | G13: Erwerbstätigenfreibeträge
A14: 1. Einkommen von 100 bis 1.000 Euro | B14: =IF(20%*(IF(D3>1000,1000,D3)-100)<0,"",20%*(IF(D3>1000,1000,D3)-100)) ->  | G14: 1. Einkommen von 100 bis 520 Euro | H14: =IF(20%*(IF(D3>520,520,D3)-100)<0,"",20%*(IF(D3>520,520,D3)-100)) -> 
A15: 2. Einkommen von 1.000 bis 1.200 Euro | B15: =IF(IF(10%*(IF(D3>1000,D3-1000,0))<20,10%*(IF(D3>1000,#REF!-1000,0)),20)=0,"",IF(10%*(IF(D3>1000,D3-1000,0))<20,10%*(IF(#REF!>1000,D3-1000,0)),20)) ->  | G15: 2. Einkommen von 520 bis 1.000 Euro | H15: =IF(IF(30%*(IF(D3>520,D3-520,0))<144,30%*(IF(D3>520,D3-520,0)),144)=0,"",IF(30%*(IF(D3>520,D3-520,0))<144,30%*(IF(D3>520,D3-520,0)),144)) -> 
A16: 3. Einkommen von 1.200 bis 1.500 Euro | B16: =IF(IF(IF(IF(D7="nein",IF(10%*(D3-1200)>30,30,10%*(D3-1200)),"")<0.00001,"",IF(D7="ja",IF(10%*(D3-1200)>30,30,10%*(D3-1200)),""))<-0.001,0,IF(IF(D7="nein",IF(10%*(D3-1200)>30,30,10%*(D3-1200)),"")<0.00001,"",IF(D7="ja",IF(10%*(D3-1200)>30,30,10%*(D3-1200)),"")))=0,"",(IF(IF(IF(D7="nein",IF(10%*(D3-1200)>30,30,10%*(D3-1200)),"")<0.00001,"",IF(D7="ja",IF(10%*(D3-1200)>30,30,10%*(D3-1200)),""))<-0.001,0,IF(IF(D7="nein",IF(10%*(D3-1200)>30,30,10%*(D3-1200)),"")<0.00001,"",IF(D7="ja",IF(10%*(D3-1200)>30,30,10%*(D3-1200)),""))))) ->  | G16: 3. Einkommen von 1.000 bis 1.200 Euro | H16: =IF(IF(10%*(IF(D3>1000,D3-1000,0))<20,10%*(IF(D3>1000,D3-1000,0)),20)=0,"",IF(10%*(IF(D3>1000,D3-1000,0))<20,10%*(IF(D3>1000,D3-1000,0)),20)) -> 
G17: 4. Einkommen von 1.200 bis 1.500 Euro | H17: =IF(IF(IF(IF(D7="nein",IF(10%*(D3-1200)>30,30,10%*(D3-1200)),"")<0.00001,"",IF(D7="ja",IF(10%*(D3-1200)>30,30,10%*(D3-1200)),""))<-0.001,0,IF(IF(D7="nein",IF(10%*(D3-1200)>30,30,10%*(D3-1200)),"")<0.00001,"",IF(D7="ja",IF(10%*(D3-1200)>30,30,10%*(D3-1200)),"")))=0,"",(IF(IF(IF(D7="nein",IF(10%*(D3-1200)>30,30,10%*(D3-1200)),"")<0.00001,"",IF(D7="ja",IF(10%*(D3-1200)>30,30,10%*(D3-1200)),""))<-0.001,0,IF(IF(D7="nein",IF(10%*(D3-1200)>30,30,10%*(D3-1200)),"")<0.00001,"",IF(D7="ja",IF(10%*(D3-1200)>30,30,10%*(D3-1200)),""))))) -> 
A18: Summe Erwerbstätigenfreibetrag | B18: =IF(SUM(B14:B16)=0,"",SUM(B14:B16)) ->  | G18: Summe Erwerbstätigenfreibetrag | H18: =IF(SUM(H14:H17)=0,"",SUM(H14:H17)) -> 
A19: Summe Einkommensbereinigung gesamt | G19: Summe Einkommensbereinigung gesamt
A20: =IF(ISERROR(SUM(B18+A12)),"",SUM(B18+A12)) ->  | G20: =IF(ISERROR(SUM(H18+G12)),"",SUM(H18+G12)) -> 
A21: zu berücksichtigendes Erwerbseinkommen | G21: zu berücksichtigendes Erwerbseinkommen
A22: =IF(D5="","",D5-A20) ->  | G22: =IF(D5="","",D5-G20) -> 
A24: Einkommensbereinigung (exakt) | G24: Einkommensbereinigung (exakt)
A25: Bruttolohn aus Erwerbstätigkeit | G25: Bruttolohn aus Erwerbstätigkeit
A26: =D3 -> 0 | G26: =D3 -> 0
A27: Nettolohn aus Erwerbstätigkeit | G27: Nettolohn aus Erwerbstätigkeit
A28: =#REF! ->  | G28: =#REF! -> 
A29: Nettolohn | G29: Nettolohn
A30: =D5 -> 0 | G30: =D5 -> 0
A31: Nr. 3 Beiträge zu öffentlichen oder privaten Versicherungen | G31: Nr. 3 Beiträge zu öffentlichen oder privaten Versicherungen
G32: 60.00 €
A33: Versicherungspauschale | G33: Versicherungspauschale
A35: KFZ Haftpflichtversicherung | G35: KFZ Haftpflichtversicherung
F36: =IF(B47>100,"Summe der Absetzbeträge ist größer als 100 Euro, d.h. nach § 11 b Abs. 2 SGB II ersetzt dieser Betrag die Pauschale","") -> Summe der Absetzbeträge ist größer als 100 Euro, d.h. nach § 11 b Abs. 2 SGB II ersetzt dieser Betrag die Pauschale
A37: Nr. 4 geförderte Altersvorsorgebeiträge | G37: Nr. 4 geförderte Altersvorsorgebeiträge
G38: 56.00 €
A39: Nr. 5 mit der Erzielung von Einkommen verbundene Ausgaben | G39: Nr. 5 mit der Erzielung von Einkommen verbundene Ausgaben
A40: KFZ-Nutzung | B40: Tage pro Monat | D40: Kilometer (einfache Strecke) | E40: Fahrtkosten | G40: KFZ-Nutzung | H40: Tage pro Monat | J40: Kilometer (einfache Strecke) | K40: Fahrtkosten
B41: 19 | D41: 56.0 | E41: =B41*D41*0.2 -> 212.80 € | H41: 19 | K41: =H41*J41*0.2 -> 0.00 €
A42: Kosten öffentliche Verkehrmittel | G42: Kosten öffentliche Verkehrmittel | H42: 67.00 €
A43: Kinderbetreuungskosten | G43: Kinderbetreuungskosten | H43: 89.00 €
A44: Berufsverbände/Gewerkschaften | G44: Berufsverbände/Gewerkschaften
A45: Arbeitskleidung/Berufskleidung/Arbeitsmittel | G45: Arbeitskleidung/Berufskleidung/Arbeitsmittel
A46: Sonstiges | G46: Sonstiges
A47: Summe Absetzbeträge Nr. 3-5 | B47: =SUM(A32+A34+A36+A38+E41+SUM(B42:E46)) -> 212.80 € | G47: Summe Absetzbeträge Nr. 3-5 | H47: =SUM(G32+G34+G36+G38+K41+SUM(H42:K46)) -> 272.00 €
A48: Nr. 6 Erwerbstätigenfreibetrag | G48: Nr. 6 Erwerbstätigenfreibetrag
A49: =B18 ->  | G49: =H18 -> 
A50: Nr. 7 Unterhaltsverpflichtungen | G50: Nr. 7 Unterhaltsverpflichtungen
A52: Nr. 7 | G52: Nr. 7
A54: Nr. 8 Bei Ausbildungsförderung nach dem BAföG bzw. SGB III bereits berücksichtigtes Einkommen | G54: Nr. 8 Bei Ausbildungsförderung nach dem BAföG bzw. SGB III bereits berücksichtigtes Einkommen
A56: zu berücksichtigendes Erwerbseinkommen | G56: zu berücksichtigendes Erwerbseinkommen
A57: =IF(B47>100,A28-B47-A49-A53-A55,A22) ->  | G57: =IF(H47>100,G28-H47-G49-G53-G55,G22) -> 
